[Event "Estonian Chess Championship 2025"]
[Site "Tallinn, EE"]
[Date "2025.12.12"]
[Round "1.2"]
[White "Rychagov, Nikita"]
[Black "Vorobjov, Pavel"]
[Result "1-0"]
[Board "7"]
[TimeControl "5400+30"]
[WhiteFideId "4508394"]
[BlackFideId "4500989"]
[WhiteTitle "CM"]
[WhiteElo "2222"]
[BlackElo "2229"]
[WhiteTeam "EST"]
[BlackTeam "EST"]
[WhiteClock "0:14:49"]
[BlackClock "0:09:48"]
[Variant "Standard"]

1. e4 {

[%clk 1:30:58]

}  c5 {

[%clk 1:30:23]

} 2. Nf3 {

[%clk 1:31:23]

}  d6 {

[%clk 1:29:29]

} 3. d4 {

[%clk 1:31:49]

}  cxd4 {

[%clk 1:29:02]

} 4. Nxd4 {

[%clk 1:32:16]

}  Nf6 {

[%clk 1:27:59]

} 5. Nc3 {

[%clk 1:32:42]

}  a6 {

[%clk 1:26:45]

} 6. Be3 {

[%clk 1:33:03]

}  e5 {

[%clk 1:25:20]

} 7. Nb3 {

[%clk 1:33:29]

}  Be7 {

[%clk 1:23:36]

} 8. f3 {

[%clk 1:33:14]

}  Be6 {

[%clk 1:21:49]

} 9. Qd2 {

[%clk 1:33:29]

}  d5 {

[%clk 1:14:37]

} 10. exd5 {

[%clk 1:33:50]

}  Nxd5 {

[%clk 1:14:51]

} 11. Nxd5 {

[%clk 1:33:17]

}  Qxd5 {

[%clk 1:14:39]

} 12. Qxd5 {

[%clk 1:33:15]

}  Bxd5 {

[%clk 1:14:56]

} 13. O-O-O {

[%clk 1:33:36]

}  Bxb3 {

[%clk 1:09:20]

} 14. axb3 {

[%clk 1:33:17]

}  Nc6 {

[%clk 1:05:16]

} 15. c3 {

[%clk 1:31:59]

}  h6 {

[%clk 1:03:49]

} 16. Kb1 {

[%clk 1:30:21]

}  Rd8 {

[%clk 0:56:24]

} 17. Bc4 {

[%clk 1:24:07]

}  Rd6 {

[%clk 0:53:10]

} 18. Rxd6 {

[%clk 1:21:06]

}  Bxd6 {

[%clk 0:52:51]

} 19. Rd1 {

[%clk 1:21:34]

}  Bb8 {

[%clk 0:48:59]

} 20. Bc5 {

[%clk 1:09:58]

}  h5 {

[%clk 0:46:42]

} 21. Bd5 {

[%clk 1:07:14]

}  Rh6 {

[%clk 0:44:40]

} 22. Be4 {

[%clk 1:06:51]

}  Rf6 {

[%clk 0:40:53]

} 23. b4 {

[%clk 1:01:25]

}  Bc7 {

[%clk 0:38:16]

} 24. Kc2 {

[%clk 1:01:00]

}  g6 {

[%clk 0:32:37]

} 25. h3 {

[%clk 0:58:52]

}  Bd8 {

[%clk 0:27:38]

} 26. g4 {

[%clk 0:55:20]

}  hxg4 {

[%clk 0:21:41]

} 27. hxg4 {

[%clk 0:55:45]

}  Be7 {

[%clk 0:21:57]

} 28. Be3 {

[%clk 0:43:01]

}  Rd6 {

[%clk 0:21:35]

} 29. Rh1 {

[%clk 0:43:07]

}  Rd8 {

[%clk 0:18:14]

} 30. Rh7 {

[%clk 0:37:07]

}  Bf6 {

[%clk 0:15:48]

} 31. Bc5 {

[%clk 0:35:39]

}  Bg5 {

[%clk 0:14:23]

} 32. Bd3 {

[%clk 0:29:45]

}  b5 {

[%clk 0:08:37]

} 33. Be4 {

[%clk 0:29:31]

}  Rd2+ {

[%clk 0:08:47]

} 34. Kb1 {

[%clk 0:26:45]

}  Nd8 {

[%clk 0:08:45]

} 35. Bb6 {

[%clk 0:25:28]

}  Bf6 {

[%clk 0:08:32]

} 36. Be3 {

[%clk 0:22:59]

}  Re2 {

[%clk 0:08:53]

} 37. Bc1 {

[%clk 0:21:42]

}  Rg2 {

[%clk 0:07:17]

} 38. Bd5 {

[%clk 0:21:00]

}  Rg1 {

[%clk 0:07:11]

} 39. Kc2 {

[%clk 0:21:15]

}  Kf8 {

[%clk 0:06:50]

} 40. Be3 {

[%clk 0:35:12]

}  Rg2+ {

[%clk 0:20:56]

} 41. Kb3 {

[%clk 0:34:10]

}  Kg8 {

[%clk 0:20:43]

} 42. Rh6 {

[%clk 0:32:48]

}  Kg7 {

[%clk 0:20:12]

} 43. Rh1 {

[%clk 0:32:56]

}  Re2 {

[%clk 0:20:21]

} 44. Bh6+ {

[%clk 0:29:15]

}  Kg8 {

[%clk 0:20:48]

} 45. Ra1 {

[%clk 0:26:46]

}  g5 {

[%clk 0:16:03]

} 46. Rxa6 {

[%clk 0:27:12]

}  Ne6 {

[%clk 0:16:10]

} 47. Bxe6 {

[%clk 0:24:48]

}  fxe6 {

[%clk 0:16:35]

} 48. Rxe6 {

[%clk 0:24:33]

}  Kf7 {

[%clk 0:16:32]

} 49. Rb6 {

[%clk 0:23:57]

}  Rf2 {

[%clk 0:14:24]

} 50. Rxb5 {

[%clk 0:22:44]

}  Rxf3 {

[%clk 0:14:40]

} 51. Bxg5 {

[%clk 0:20:32]

}  Bxg5 {

[%clk 0:14:14]

} 52. Rxe5 {

[%clk 0:20:58]

}  Kg6 {

[%clk 0:13:17]

} 53. b5 {

[%clk 0:19:15]

}  Rf2 {

[%clk 0:13:08]

} 54. b6 {

[%clk 0:17:38]

}  Bc1 {

[%clk 0:13:14]

} 55. Rb5 {

[%clk 0:17:31]

}  Rxb2+ {

[%clk 0:13:22]

} 56. Kc4 {

[%clk 0:15:24]

}  Rg2 {

[%clk 0:13:11]

} 57. b7 {

[%clk 0:15:25]

}  Rxg4+ {

[%clk 0:10:23]

} 58. Kb3 {

[%clk 0:15:00]

}  Bf4 {

[%clk 0:10:29]

} 59. Rb4 {

[%clk 0:15:24]

}  Rg1 {

[%clk 0:10:46]

} 60. Rxf4 {

[%clk 0:15:35]

}  Rb1+ {

[%clk 0:11:07]

} 61. Ka4 {

[%clk 0:15:30]

}  Rxb7 {

[%clk 0:11:16]

} 62. c4 {

[%clk 0:15:47]

}  Ra7+ {

[%clk 0:08:32]

} 63. Kb5 {

[%clk 0:16:11]

}  Rb7+ {

[%clk 0:08:57]

} 64. Kc6 {

[%clk 0:16:34]

}  Rb4 {

[%clk 0:09:20]

} 65. Kd5 {

[%clk 0:14:39]

}  Ra4 {

[%clk 0:09:48]

} 66. Rf1 {

[%clk 0:14:49]

} 1-0

[Event "Estonian Chess Championship 2025 - Rapid tie-breaks"]
[Site "Tallinn, EE"]
[Date "2025.12.12"]
[Round "1.3"]
[White "Rychagov, Nikita"]
[Black "Vorobjov, Pavel"]
[Result "1-0"]
[Board "7"]
[TimeControl "900+3"]
[WhiteFideId "4508394"]
[BlackFideId "4500989"]
[WhiteTitle "CM"]
[WhiteElo "2300"]
[BlackElo "2254"]
[WhiteTeam "EST"]
[BlackTeam "EST"]
[WhiteClock "0:02:29"]
[BlackClock "0:01:51"]
[Variant "Standard"]

1. e4 {

[%clk 0:15:05]

}  c5 {

[%clk 0:15:04]

} 2. Nf3 {

[%clk 0:15:07]

}  d6 {

[%clk 0:15:05]

} 3. d4 {

[%clk 0:15:09]

}  cxd4 {

[%clk 0:15:07]

} 4. Nxd4 {

[%clk 0:15:12]

}  Nf6 {

[%clk 0:15:06]

} 5. Nc3 {

[%clk 0:15:14]

}  a6 {

[%clk 0:15:08]

} 6. Be3 {

[%clk 0:15:16]

}  e5 {

[%clk 0:15:07]

} 7. Nb3 {

[%clk 0:15:18]

}  Be7 {

[%clk 0:15:08]

} 8. f3 {

[%clk 0:15:20]

}  Be6 {

[%clk 0:15:06]

} 9. Qd2 {

[%clk 0:15:22]

}  h5 {

[%clk 0:14:52]

} 10. Nd5 {

[%clk 0:15:24]

}  Nxd5 {

[%clk 0:13:45]

} 11. exd5 {

[%clk 0:15:26]

}  Bf5 {

[%clk 0:13:41]

} 12. Be2 {

[%clk 0:15:28]

}  Nd7 {

[%clk 0:12:59]

} 13. O-O {

[%clk 0:15:23]

}  O-O {

[%clk 0:11:46]

} 14. Na5 {

[%clk 0:15:08]

}  Qc7 {

[%clk 0:10:52]

} 15. c4 {

[%clk 0:15:06]

}  Bf6 {

[%clk 0:10:41]

} 16. Rac1 {

[%clk 0:14:40]

}  e4 {

[%clk 0:10:32]

} 17. fxe4 {

[%clk 0:13:39]

}  Bxe4 {

[%clk 0:10:33]

} 18. Bxh5 {

[%clk 0:13:24]

}  Rae8 {

[%clk 0:10:09]

} 19. b4 {

[%clk 0:11:23]

}  Re5 {

[%clk 0:09:15]

} 20. Bf3 {

[%clk 0:10:03]

}  Bxf3 {

[%clk 0:09:05]

} 21. Rxf3 {

[%clk 0:10:00]

}  Rh5 {

[%clk 0:08:58]

} 22. c5 {

[%clk 0:07:39]

}  Be5 {

[%clk 0:08:40]

} 23. h3 {

[%clk 0:07:33]

}  Re8 {

[%clk 0:06:59]

} 24. c6 {

[%clk 0:07:25]

}  bxc6 {

[%clk 0:06:48]

} 25. dxc6 {

[%clk 0:07:25]

}  Nf6 {

[%clk 0:06:41]

} 26. Qd3 {

[%clk 0:06:28]

}  d5 {

[%clk 0:05:41]

} 27. Qxa6 {

[%clk 0:05:22]

}  d4 {

[%clk 0:03:53]

} 28. Bf2 {

[%clk 0:05:21]

}  Rb8 {

[%clk 0:03:35]

} 29. Qe2 {

[%clk 0:03:14]

}  Rxb4 {

[%clk 0:02:59]

} 30. Rxf6 {

[%clk 0:03:02]

}  Bh2+ {

[%clk 0:03:01]

} 31. Kh1 {

[%clk 0:02:54]

}  Rxa5 {

[%clk 0:03:02]

} 32. Qe8+ {

[%clk 0:02:45]

}  Kh7 {

[%clk 0:03:03]

} 33. Rxf7 {

[%clk 0:02:35]

}  Qe5 {

[%clk 0:01:57]

} 34. Qxe5 {

[%clk 0:02:34]

}  Bxe5 {

[%clk 0:01:51]

} 35. Be1 {

[%clk 0:02:29]

} 1-0

[Event "Estonian Chess Championship 2025 - Rapid tie-breaks"]
[Site "Tallinn, EE"]
[Date "2025.12.12"]
[Round "1.4"]
[White "Vorobjov, Pavel"]
[Black "Rychagov, Nikita"]
[Result "1/2-1/2"]
[Board "7"]
[TimeControl "900+3"]
[WhiteFideId "4500989"]
[BlackFideId "4508394"]
[BlackTitle "CM"]
[WhiteElo "2254"]
[BlackElo "2300"]
[WhiteTeam "EST"]
[BlackTeam "EST"]
[WhiteClock "0:00:11"]
[BlackClock "0:00:31"]
[Variant "Standard"]

1. d4 {

[%clk 0:15:04]

}  Nf6 {

[%clk 0:15:05]

} 2. Bg5 {

[%clk 0:14:53]

}  Ne4 {

[%clk 0:15:04]

} 3. h4 {

[%clk 0:14:45]

}  d5 {

[%clk 0:14:53]

} 4. Nd2 {

[%clk 0:14:35]

}  Nxd2 {

[%clk 0:14:47]

} 5. Qxd2 {

[%clk 0:14:32]

}  Bf5 {

[%clk 0:14:48]

} 6. e3 {

[%clk 0:14:03]

}  Qd7 {

[%clk 0:14:47]

} 7. Nf3 {

[%clk 0:13:56]

}  f6 {

[%clk 0:14:39]

} 8. Bf4 {

[%clk 0:13:56]

}  e6 {

[%clk 0:14:39]

} 9. h5 {

[%clk 0:13:22]

}  Nc6 {

[%clk 0:13:39]

} 10. Bb5 {

[%clk 0:13:05]

}  a6 {

[%clk 0:13:06]

} 11. Ba4 {

[%clk 0:13:05]

}  Bg4 {

[%clk 0:10:56]

} 12. Rh4 {

[%clk 0:12:39]

}  Bxf3 {

[%clk 0:10:45]

} 13. gxf3 {

[%clk 0:12:40]

}  O-O-O {

[%clk 0:10:25]

} 14. O-O-O {

[%clk 0:12:28]

}  b5 {

[%clk 0:09:15]

} 15. Bb3 {

[%clk 0:12:28]

}  Bb4 {

[%clk 0:08:40]

} 16. c3 {

[%clk 0:12:16]

}  Bf8 {

[%clk 0:08:30]

} 17. Bc2 {

[%clk 0:11:04]

}  Kb7 {

[%clk 0:08:17]

} 18. e4 {

[%clk 0:10:54]

}  Bd6 {

[%clk 0:06:32]

} 19. Be3 {

[%clk 0:10:48]

}  Ne7 {

[%clk 0:05:46]

} 20. Rg1 {

[%clk 0:09:49]

}  g5 {

[%clk 0:05:32]

} 21. hxg6 {

[%clk 0:09:48]

}  hxg6 {

[%clk 0:05:34]

} 22. Rgh1 {

[%clk 0:09:46]

}  Qc8 {

[%clk 0:05:36]

} 23. f4 {

[%clk 0:08:43]

}  dxe4 {

[%clk 0:04:36]

} 24. Bxe4+ {

[%clk 0:08:44]

}  c6 {

[%clk 0:04:16]

} 25. Rh7 {

[%clk 0:08:14]

}  Rxh7 {

[%clk 0:04:14]

} 26. Rxh7 {

[%clk 0:08:16]

}  Rh8 {

[%clk 0:03:50]

} 27. Bxg6 {

[%clk 0:07:19]

}  Rxh7 {

[%clk 0:03:45]

} 28. Bxh7 {

[%clk 0:07:19]

}  Qh8 {

[%clk 0:03:12]

} 29. Be4 {

[%clk 0:07:06]

}  f5 {

[%clk 0:03:10]

} 30. Bf3 {

[%clk 0:06:57]

}  Qh3 {

[%clk 0:02:42]

} 31. Qe2 {

[%clk 0:06:47]

}  Nd5 {

[%clk 0:02:27]

} 32. Bxd5 {

[%clk 0:05:58]

}  exd5 {

[%clk 0:02:18]

} 33. Bd2 {

[%clk 0:05:49]

}  Qh1+ {

[%clk 0:02:18]

} 34. Kc2 {

[%clk 0:05:40]

}  Qe4+ {

[%clk 0:02:08]

} 35. Qxe4 {

[%clk 0:05:41]

}  dxe4 {

[%clk 0:01:57]

} 36. Kd1 {

[%clk 0:05:23]

}  Kc7 {

[%clk 0:01:40]

} 37. Ke2 {

[%clk 0:05:14]

}  Kd7 {

[%clk 0:01:42]

} 38. f3 {

[%clk 0:05:16]

}  exf3+ {

[%clk 0:01:44]

} 39. Kxf3 {

[%clk 0:05:17]

}  Ke6 {

[%clk 0:01:45]

} 40. Ke3 {

[%clk 0:04:45]

}  Kd5 {

[%clk 0:00:56]

} 41. Kd3 {

[%clk 0:04:45]

}  Bc7 {

[%clk 0:00:52]

} 42. b3 {

[%clk 0:04:41]

}  Ke6 {

[%clk 0:00:54]

} 43. c4 {

[%clk 0:04:35]

}  Bd8 {

[%clk 0:00:47]

} 44. Bb4 {

[%clk 0:04:07]

}  Bc7 {

[%clk 0:00:48]

} 45. Ke3 {

[%clk 0:04:08]

}  Bb8 {

[%clk 0:00:46]

} 46. Bf8 {

[%clk 0:04:08]

}  Bc7 {

[%clk 0:00:48]

} 47. Bg7 {

[%clk 0:04:09]

}  Bd8 {

[%clk 0:00:50]

} 48. Be5 {

[%clk 0:04:09]

}  Ba5 {

[%clk 0:00:53]

} 49. a4 {

[%clk 0:03:25]

}  bxa4 {

[%clk 0:00:54]

} 50. bxa4 {

[%clk 0:03:27]

}  Bd8 {

[%clk 0:00:53]

} 51. Kd3 {

[%clk 0:03:07]

}  Ba5 {

[%clk 0:00:55]

} 52. Kc2 {

[%clk 0:02:52]

}  Bd8 {

[%clk 0:00:49]

} 53. Kb3 {

[%clk 0:02:53]

}  Ba5 {

[%clk 0:00:51]

} 54. Ka3 {

[%clk 0:02:49]

}  Bd2 {

[%clk 0:00:48]

} 55. Kb3 {

[%clk 0:02:35]

}  Ba5 {

[%clk 0:00:50]

} 56. Bb8 {

[%clk 0:01:39]

}  Bd2 {

[%clk 0:00:46]

} 57. Kc2 {

[%clk 0:01:27]

}  Ba5 {

[%clk 0:00:48]

} 58. Kd3 {

[%clk 0:01:21]

}  Bb4 {

[%clk 0:00:49]

} 59. Bc7 {

[%clk 0:01:17]

}  Kd7 {

[%clk 0:00:43]

} 60. Bb6 {

[%clk 0:01:09]

}  Ke6 {

[%clk 0:00:46]

} 61. Ba7 {

[%clk 0:00:40]

}  Ba3 {

[%clk 0:00:43]

} 62. Kc3 {

[%clk 0:00:37]

}  Be7 {

[%clk 0:00:28]

} 63. Bb8 {

[%clk 0:00:30]

}  Bf8 {

[%clk 0:00:24]

} 64. Bc7 {

[%clk 0:00:23]

}  Be7 {

[%clk 0:00:25]

} 65. Kd3 {

[%clk 0:00:22]

}  Bb4 {

[%clk 0:00:27]

} 66. Bb8 {

[%clk 0:00:20]

}  Ba5 {

[%clk 0:00:29]

} 67. d5+ {

[%clk 0:00:20]

}  cxd5 {

[%clk 0:00:31]

} 68. c5 {

[%clk 0:00:22]

}  Kd7 {

[%clk 0:00:17]

} 69. Kd4 {

[%clk 0:00:24]

}  Kc6 {

[%clk 0:00:19]

} 70. Bd6 {

[%clk 0:00:24]

}  Bb4 {

[%clk 0:00:14]

} 71. Ke5 {

[%clk 0:00:09]

}  Bxc5 {

[%clk 0:00:16]

} 72. Bxc5 {

[%clk 0:00:11]

}  Kxc5 {

[%clk 0:00:18]

} 73. Kxf5 {

[%clk 0:00:13]

}  d4 {

[%clk 0:00:21]

} 74. Ke4 {

[%clk 0:00:15]

}  Kc4 {

[%clk 0:00:23]

} 75. f5 {

[%clk 0:00:16]

}  d3 {

[%clk 0:00:26]

} 76. Ke3 {

[%clk 0:00:16]

}  Kc3 {

[%clk 0:00:28]

} 77. f6 {

[%clk 0:00:16]

}  d2 {

[%clk 0:00:31]

} 78. Ke4 {

[%clk 0:00:11]

} 1/2-1/2

[Event "Estonian Chess Championship 2025"]
[Site "Tallinn, EE"]
[Date "2025.12.17"]
[Round "4.1"]
[White "Chukavin, Kirill"]
[Black "Kanep, Meelis"]
[Result "1-0"]
[Board "1"]
[TimeControl "5400+30"]
[WhiteFideId "4503023"]
[BlackFideId "4501047"]
[WhiteTitle "FM"]
[BlackTitle "GM"]
[WhiteElo "2358"]
[BlackElo "2378"]
[WhiteTeam "EST"]
[BlackTeam "EST"]
[WhiteClock "0:08:48"]
[BlackClock "0:08:50"]
[Variant "Standard"]

1. e4 {

[%clk 1:27:23]

}  d6 {

[%clk 1:27:38]

} 2. d4 {

[%clk 1:27:21]

}  Nf6 {

[%clk 1:28:00]

} 3. Nc3 {

[%clk 1:27:40]

}  e5 {

[%clk 1:28:24]

} 4. Nf3 {

[%clk 1:27:05]

}  Nbd7 {

[%clk 1:28:43]

} 5. Bc4 {

[%clk 1:26:53]

}  Be7 {

[%clk 1:29:01]

} 6. O-O {

[%clk 1:26:53]

}  O-O {

[%clk 1:29:24]

} 7. Re1 {

[%clk 1:24:35]

}  c6 {

[%clk 1:24:12]

} 8. a4 {

[%clk 1:24:54]

}  h6 {

[%clk 1:24:32]

} 9. h3 {

[%clk 1:21:24]

}  Re8 {

[%clk 1:22:42]

} 10. Ba2 {

[%clk 1:19:52]

}  Qc7 {

[%clk 1:13:58]

} 11. Nh4 {

[%clk 1:14:35]

}  Nf8 {

[%clk 1:07:11]

} 12. dxe5 {

[%clk 1:08:47]

}  dxe5 {

[%clk 1:04:53]

} 13. Qf3 {

[%clk 0:50:14]

}  Be6 {

[%clk 1:02:12]

} 14. Nf5 {

[%clk 0:50:04]

}  Bxf5 {

[%clk 1:00:53]

} 15. exf5 {

[%clk 0:48:45]

}  Bb4 {

[%clk 0:43:13]

} 16. Ne4 {

[%clk 0:43:25]

}  N8h7 {

[%clk 0:42:54]

} 17. c3 {

[%clk 0:42:26]

}  Bf8 {

[%clk 0:42:50]

} 18. Qg3 {

[%clk 0:34:11]

}  Kh8 {

[%clk 0:36:49]

} 19. Nxf6 {

[%clk 0:32:54]

}  Nxf6 {

[%clk 0:37:00]

} 20. Qh4 {

[%clk 0:32:54]

}  Nd5 {

[%clk 0:29:44]

} 21. f6 {

[%clk 0:27:35]

}  Nxf6 {

[%clk 0:25:44]

} 22. Bxh6 {

[%clk 0:27:57]

}  Nd5 {

[%clk 0:22:26]

} 23. c4 {

[%clk 0:14:27]

}  gxh6 {

[%clk 0:19:46]

} 24. cxd5 {

[%clk 0:14:51]

}  cxd5 {

[%clk 0:18:38]

} 25. Bxd5 {

[%clk 0:14:34]

}  Bg7 {

[%clk 0:18:32]

} 26. Qh5 {

[%clk 0:13:50]

}  Re7 {

[%clk 0:15:02]

} 27. Be4 {

[%clk 0:13:09]

}  Qd7 {

[%clk 0:13:52]

} 28. Ra3 {

[%clk 0:12:02]

}  Qd2 {

[%clk 0:12:54]

} 29. Rae3 {

[%clk 0:11:31]

}  Qd7 {

[%clk 0:10:45]

} 30. Rd3 {

[%clk 0:09:53]

}  Qxa4 {

[%clk 0:08:28]

} 31. Qf5 {

[%clk 0:08:57]

}  Kg8 {

[%clk 0:08:50]

} 32. Qh7+ {

[%clk 0:08:48]

} 1-0

[Event "Estonian Chess Championship 2025"]
[Site "Tallinn, EE"]
[Date "2025.12.18"]
[Round "4.2"]
[White "Kanep, Meelis"]
[Black "Chukavin, Kirill"]
[Result "1/2-1/2"]
[Board "1"]
[TimeControl "5400+30"]
[WhiteFideId "4501047"]
[BlackFideId "4503023"]
[WhiteTitle "GM"]
[BlackTitle "FM"]
[WhiteElo "2378"]
[BlackElo "2358"]
[WhiteTeam "EST"]
[BlackTeam "EST"]
[WhiteClock "0:59:48"]
[BlackClock "1:27:31"]
[Variant "Standard"]

1. d4 {

[%clk 1:30:41]

}  Nf6 {

[%clk 1:29:22]

} 2. c4 {

[%clk 1:25:39]

}  e6 {

[%clk 1:29:44]

} 3. Nf3 {

[%clk 1:25:42]

}  d5 {

[%clk 1:30:06]

} 4. Nc3 {

[%clk 1:25:52]

}  c5 {

[%clk 1:30:14]

} 5. cxd5 {

[%clk 1:25:39]

}  cxd4 {

[%clk 1:30:33]

} 6. Qxd4 {

[%clk 1:23:11]

}  exd5 {

[%clk 1:30:55]

} 7. e4 {

[%clk 1:21:55]

}  dxe4 {

[%clk 1:31:14]

} 8. Qxd8+ {

[%clk 1:21:42]

}  Kxd8 {

[%clk 1:31:36]

} 9. Ng5 {

[%clk 1:20:51]

}  Be6 {

[%clk 1:31:59]

} 10. Nxe6+ {

[%clk 1:20:02]

}  fxe6 {

[%clk 1:32:23]

} 11. Bc4 {

[%clk 1:13:13]

}  Ke7 {

[%clk 1:32:30]

} 12. O-O {

[%clk 1:11:29]

}  Kf7 {

[%clk 1:27:31]

} 13. Bg5 {

[%clk 0:59:48]

} 1/2-1/2

[Event "Estonian Chess Championship 2025"]
[Site "Tallinn, EE"]
[Date "2025.12.17"]
[Round "4.1"]
[White "Rychagov, Nikita"]
[Black "Sirosh, Ilja"]
[Result "0-1"]
[Board "2"]
[TimeControl "5400+30"]
[WhiteFideId "4508394"]
[BlackFideId "4500458"]
[WhiteTitle "CM"]
[BlackTitle "IM"]
[WhiteElo "2222"]
[BlackElo "2391"]
[WhiteTeam "EST"]
[BlackTeam "EST"]
[WhiteClock "0:09:58"]
[BlackClock "0:47:30"]
[Variant "Standard"]

1. e4 {

[%clk 1:29:53]

}  c6 {

[%clk 1:30:53]

} 2. d4 {

[%clk 1:30:19]

}  d5 {

[%clk 1:31:18]

} 3. e5 {

[%clk 1:30:45]

}  Bf5 {

[%clk 1:31:42]

} 4. Nf3 {

[%clk 1:31:11]

}  e6 {

[%clk 1:32:04]

} 5. Be2 {

[%clk 1:31:36]

}  c5 {

[%clk 1:32:27]

} 6. Be3 {

[%clk 1:30:16]

}  cxd4 {

[%clk 1:32:43]

} 7. Nxd4 {

[%clk 1:30:39]

}  Ne7 {

[%clk 1:33:08]

} 8. O-O {

[%clk 1:30:05]

}  Nbc6 {

[%clk 1:33:06]

} 9. Bb5 {

[%clk 1:29:10]

}  a6 {

[%clk 1:33:19]

} 10. Bxc6+ {

[%clk 1:29:33]

}  bxc6 {

[%clk 1:33:13]

} 11. c4 {

[%clk 1:27:52]

}  Qd7 {

[%clk 1:32:48]

} 12. Nc3 {

[%clk 1:27:09]

}  dxc4 {

[%clk 1:32:54]

} 13. Na4 {

[%clk 1:21:50]

}  Nd5 {

[%clk 1:32:41]

} 14. Nxf5 {

[%clk 1:21:45]

}  exf5 {

[%clk 1:33:04]

} 15. Rc1 {

[%clk 1:14:20]

}  c3 {

[%clk 1:32:25]

} 16. bxc3 {

[%clk 1:05:45]

}  Nxe3 {

[%clk 1:26:39]

} 17. fxe3 {

[%clk 1:00:54]

}  Qe6 {

[%clk 1:16:59]

} 18. Qf3 {

[%clk 0:57:16]

}  g6 {

[%clk 1:09:28]

} 19. Rfd1 {

[%clk 0:48:15]

}  Be7 {

[%clk 1:08:18]

} 20. Rd6 {

[%clk 0:31:28]

}  Bxd6 {

[%clk 1:02:40]

} 21. Qxc6+ {

[%clk 0:31:54]

}  Kf8 {

[%clk 1:03:00]

} 22. Qxa8+ {

[%clk 0:28:27]

}  Kg7 {

[%clk 1:03:21]

} 23. Qa7 {

[%clk 0:28:00]

}  Bxe5 {

[%clk 1:02:55]

} 24. Rd1 {

[%clk 0:22:17]

}  Rc8 {

[%clk 0:52:27]

} 25. Nc5 {

[%clk 0:13:27]

}  Qxa2 {

[%clk 0:48:51]

} 26. Qxa6 {

[%clk 0:12:44]

}  Qxa6 {

[%clk 0:48:07]

} 27. Nxa6 {

[%clk 0:13:11]

}  Rxc3 {

[%clk 0:48:27]

} 28. Kf2 {

[%clk 0:10:27]

}  Bxh2 {

[%clk 0:46:22]

} 29. g3 {

[%clk 0:10:51]

}  Rc2+ {

[%clk 0:46:44]

} 30. Kf3 {

[%clk 0:11:15]

}  g5 {

[%clk 0:47:02]

} 31. Rf1 {

[%clk 0:09:31]

}  g4+ {

[%clk 0:47:12]

} 32. Kf4 {

[%clk 0:09:58]

}  Kf6 {

[%clk 0:47:30]

} 0-1

[Event "Estonian Chess Championship 2025"]
[Site "Tallinn, EE"]
[Date "2025.12.18"]
[Round "4.2"]
[White "Sirosh, Ilja"]
[Black "Rychagov, Nikita"]
[Result "1/2-1/2"]
[Board "2"]
[TimeControl "5400+30"]
[WhiteFideId "4500458"]
[BlackFideId "4508394"]
[WhiteTitle "IM"]
[BlackTitle "CM"]
[WhiteElo "2391"]
[BlackElo "2222"]
[WhiteTeam "EST"]
[BlackTeam "EST"]
[WhiteClock "1:00:14"]
[BlackClock "0:45:20"]
[Variant "Standard"]

1. e4 {

[%clk 1:30:57]

}  e5 {

[%clk 1:30:55]

} 2. Nf3 {

[%clk 1:31:21]

}  Nc6 {

[%clk 1:31:21]

} 3. Nc3 {

[%clk 1:31:44]

}  Nf6 {

[%clk 1:31:45]

} 4. d4 {

[%clk 1:32:09]

}  exd4 {

[%clk 1:32:07]

} 5. Nxd4 {

[%clk 1:32:33]

}  Bb4 {

[%clk 1:32:31]

} 6. Nxc6 {

[%clk 1:32:57]

}  bxc6 {

[%clk 1:32:56]

} 7. Bd3 {

[%clk 1:33:21]

}  d5 {

[%clk 1:33:17]

} 8. Bd2 {

[%clk 1:33:43]

}  O-O {

[%clk 1:33:06]

} 9. O-O {

[%clk 1:34:07]

}  Rb8 {

[%clk 1:33:14]

} 10. Re1 {

[%clk 1:34:14]

}  Re8 {

[%clk 1:33:37]

} 11. exd5 {

[%clk 1:34:14]

}  Rxe1+ {

[%clk 1:33:30]

} 12. Qxe1 {

[%clk 1:34:37]

}  cxd5 {

[%clk 1:33:44]

} 13. a3 {

[%clk 1:34:47]

}  Be7 {

[%clk 1:33:42]

} 14. b4 {

[%clk 1:34:35]

}  c5 {

[%clk 1:30:30]

} 15. bxc5 {

[%clk 1:34:43]

}  Bxc5 {

[%clk 1:30:42]

} 16. Be3 {

[%clk 1:33:38]

}  d4 {

[%clk 1:16:58]

} 17. Bf4 {

[%clk 1:33:39]

}  Rb6 {

[%clk 1:16:15]

} 18. Ne4 {

[%clk 1:33:46]

}  Nxe4 {

[%clk 1:12:55]

} 19. Qxe4 {

[%clk 1:33:11]

}  g6 {

[%clk 1:12:51]

} 20. Qe5 {

[%clk 1:16:20]

}  Bf8 {

[%clk 1:05:59]

} 21. Qc7 {

[%clk 1:14:51]

}  Qxc7 {

[%clk 1:06:11]

} 22. Bxc7 {

[%clk 1:15:15]

}  Re6 {

[%clk 1:01:06]

} 23. Kf1 {

[%clk 1:12:46]

}  Ba6 {

[%clk 0:56:04]

} 24. Bb8 {

[%clk 1:11:01]

}  Bxd3+ {

[%clk 0:55:28]

} 25. cxd3 {

[%clk 1:11:26]

}  Ra6 {

[%clk 0:55:50]

} 26. a4 {

[%clk 1:11:22]

}  Bb4 {

[%clk 0:55:35]

} 27. Rb1 {

[%clk 1:04:54]

}  Bc3 {

[%clk 0:53:20]

} 28. Rb7 {

[%clk 1:04:31]

}  Re6 {

[%clk 0:52:19]

} 29. g4 {

[%clk 1:03:26]

}  a5 {

[%clk 0:51:00]

} 30. Rd7 {

[%clk 1:02:12]

}  f5 {

[%clk 0:46:21]

} 31. gxf5 {

[%clk 0:59:38]

}  gxf5 {

[%clk 0:46:48]

} 32. Ba7 {

[%clk 0:59:24]

}  Re1+ {

[%clk 0:45:08]

} 33. Kg2 {

[%clk 0:59:47]

}  Rd1 {

[%clk 0:45:22]

} 34. Bxd4 {

[%clk 1:00:04]

}  Rxd3 {

[%clk 0:45:49]

} 35. Rg7+ {

[%clk 1:00:14]

}  Kh8 {

[%clk 0:45:20]

} 1/2-1/2